bitfinex/quotes_ETHUSD_20260121
["timestamp","ask_amount","ask_price","bid_price","bid_amount"]
[1769005062444,0.002,2977.7,2975.3,13.14162238]
[1769005062766,3.36032621,2977.7,2975.5,11.49353277]
[1769005063065,0.33603262,2977.6,2975.7,11.49353277]
[1769005063363,0.33603262,2977.6,2975.9,11.49353277]
[1769005063964,0.33603262,2977.6,2975.6,0.68121647]
[1769005064248,10.07556675,2977.5,2975.8,0.555]
[1769005064766,16.973089,2977.5,2975.8,0.555]
[1769005065138,3.539,2977.3,2975.8,0.555]
[1769005066153,13.61558201,2977.2,2975.8,0.555]
[1769005066468,11.48412216,2977.0,2974.7,0.555]
[1769005066668,7.9473807,2976.5,2974.7,0.555]
[1769005067179,7.9473807,2976.5,2974.9,0.5]
[1769005067470,7.9473807,2976.5,2974.7,0.555]
[1769005068038,10.07962905,2976.3,2974.7,0.555]
[1769005068239,1.84179899,2976.2,2974.7,0.555]
[1769005069059,1.84179899,2976.2,2974.7,1.11]
[1769005069854,6.7197527,2976.3,2974.8,0.03361568]
[1769005070058,3.35972572,2976.5,2974.7,1.11]
[1769005070237,5.368004,2976.6,2974.7,1.11]
[1769005070664,13.43769944,2976.7,2974.7,1.11]
[1769005070665,8.0753807,2976.5,2974.7,1.11]
[1769005070873,16.7971243,2976.7,2974.7,1.11]
[1769005070874,29.158233,2976.6,2974.7,1.11]
[1769005071040,3.39115248,2976.5,2974.7,1.11]
[1769005071239,18.676569,2976.5,2974.7,1.11]
[1769005071472,28.466718,2976.6,2974.7,1.665]
[1769005071690,6.71884972,2976.7,2974.8,11.95312128]
[1769005071972,6.71817264,2977.0,2975.0,11.91950558]
[1769005072269,4.72257072,2977.1,2975.4,11.91950558]
[1769005072270,1.14407434,2976.9,2975.4,11.91950558]
[1769005072445,3.360987,2977.1,2975.4,11.91950558]
[1769005072648,0.002,2977.1,2975.4,11.91950558]
[1769005073393,3.36097349,2977.1,2975.4,11.91950558]
[1769005073761,3.36097349,2977.1,2975.5,0.556]
[1769005074090,0.002,2977.1,2975.5,12.47550558]
[1769005074263,0.002,2977.1,2975.8,11.91950558]
[1769005075476,0.002,2977.1,2975.6,1.30305056]
[1769005075692,0.002,2977.1,2975.4,0.555]
[1769005076477,0.002,2977.1,2975.4,1.11]
[1769005077197,0.002,2977.1,2975.4,4.47082336]
[1769005077402,0.002,2977.1,2975.5,11.91950558]
[1769005078363,0.002,2977.1,2975.4,1.11]
[1769005078760,0.002,2977.1,2975.6,11.11233676]
[1769005078974,0.002,2977.1,2975.7,1.44730638]
[1769005079205,0.002,2977.1,2975.4,2.221]
[1769005079691,0.002,2977.1,2975.4,13.36694568]
[1769005079891,0.002,2977.1,2975.4,13.33333676]
[1769005080317,0.002,2977.1,2975.5,11.11233676]
[1769005081201,0.002,2976.9,2975.7,11.11233676]
[1769005081507,0.002,2976.9,2975.6,0.001]
[1769005081508,0.002,2976.9,2975.9,11.11233676]
[1769005081886,0.002,2976.9,2975.6,0.001]
[1769005082415,0.002,2976.9,2975.8,0.5]
[1769005082778,0.002,2976.9,2975.8,11.61233676]
[1769005083725,0.002,2976.9,2975.8,14.97275801]
[1769005083909,0.002,2976.9,2975.9,12.64321583]
[1769005084095,0.002,2977.1,2975.9,12.60961256]
[1769005084502,0.002,2977.3,2976.1,11.11233676]
[1769005084703,0.002,2977.3,2976.3,11.11233676]
[1769005084884,0.002,2977.3,2976.5,11.11233676]
[1769005085234,0.002,2978.5,2976.6,11.11233676]
[1769005085382,0.002,2978.5,2976.5,11.11233676]
[1769005086197,3.35939502,2978.5,2976.6,0.556]
[1769005086396,0.002,2978.5,2976.9,11.11233676]
[1769005086607,0.002,2978.5,2977.1,11.11233676]
[1769005087422,0.002,2978.5,2977.3,11.11233676]
[1769005088493,0.002,2978.5,2977.5,11.11233676]
[1769005089128,0.002,2978.5,2977.3,1.11]
[1769005089324,0.002,2978.5,2977.3,12.22233676]
[1769005089493,0.002,2978.5,2977.4,1.22223368]
[1769005089691,0.002,2978.5,2977.3,1.11]
[1769005089894,0.002,2978.5,2977.3,0.555]
[1769005090130,0.002,2978.5,2977.3,15.02607783]
[1769005090441,0.002,2978.5,2977.5,14.47085901]
[1769005090745,0.002,2978.5,2977.5,11.11233676]
[1769005090918,0.002,2978.5,2977.6,1.11123368]
[1769005091533,0.002,2978.5,2977.5,0.555]
[1769005092692,0.002,2978.5,2977.5,11.66733676]
[1769005093093,0.002,2978.5,2977.5,0.555]
[1769005093705,0.002,2978.5,2977.5,1.11]
[1769005094601,0.002,2978.5,2977.5,1.111]
[1769005094800,0.002,2978.5,2977.5,2.38883368]
[1769005095012,0.002,2978.3,2977.3,0.555]
[1769005096098,0.002,2978.3,2977.3,1.11]
[1769005096993,0.002,2978.3,2976.5,0.555]
[1769005096994,20.30495126,2978.3,2976.5,0.555]
[1769005097193,0.002,2978.3,2976.5,12.03111858]
[1769005097424,0.002,2978.3,2976.5,13.23423044]
[1769005097597,0.002,2978.3,2976.7,0.5]
[1769005097929,0.002,2978.3,2976.7,0.53359424]
[1769005098096,0.002,2978.3,2976.7,0.5]
[1769005098502,0.002,2978.3,2976.7,1.055]
[1769005098699,0.002,2978.3,2976.7,2.48728258]
[1769005099525,0.002,2978.3,2976.7,2.52087682]
[1769005099704,0.002,2978.3,2976.7,17.32280585]
[1769005099905,0.002,2978.3,2976.8,11.5097117]
[1769005100106,0.002,2978.3,2977.0,11.47611858]
[1769005100318,0.002,2978.3,2977.2,11.47611858]
[1769005100624,0.002,2978.3,2977.3,14.86838034]
[1769005100829,0.002,2978.3,2977.4,11.50970493]
[1769005100995,0.002,2978.3,2977.4,11.47611858]
[1769005101532,0.002,2978.3,2977.6,11.47611858]
[1769005101832,0.002,2979.5,2977.8,11.47611858]
[1769005102621,0.002,2979.7,2978.4,11.47611858]
[1769005102820,0.002,2979.7,2978.6,11.47611858]
[1769005103135,0.002,2979.7,2978.4,0.555]
[1769005103332,0.002,2979.7,2978.3,0.555]
[1769005103499,0.002,2979.7,2978.3,1.11]
[1769005103933,0.002,2979.7,2978.3,0.555]
[1769005104335,0.002,2979.7,2978.5,0.5]
[1769005104537,6.709158,2981.0,2978.6,8.06148]
[1769005104701,10.06204929,2981.5,2978.9,11.47611858]
[1769005104902,6.70803286,2981.5,2979.1,11.47611858]
[1769005105116,1.90636034,2981.4,2979.3,11.47611858]
[1769005105320,3.35401643,2981.5,2979.3,11.47611858]
[1769005105633,6.70803286,2981.5,2979.3,12.03111858]
[1769005105939,10.06204929,2981.5,2979.3,12.58611858]
[1769005106238,10.8946947,2981.4,2979.3,1.11]
[1769005106443,12.35557056,2981.2,2979.3,0.555]
[1769005106602,10.06474989,2980.7,2978.6,11.47711858]
[1769005106915,3.35491663,2980.7,2978.6,11.47711858]
[1769005107113,6.70983326,2980.7,2978.6,11.47711858]
[1769005107313,2.43107604,2981.3,2978.6,11.47711858]
[1769005107314,0.002,2980.9,2978.6,11.47711858]
[1769005107509,0.002,2980.9,2978.7,1.14771186]
[1769005108039,12.35757056,2980.9,2978.6,0.001]
[1769005108234,0.555,2980.8,2978.6,0.001]
[1769005108408,23.79344056,2980.7,2978.7,0.555]
[1769005108610,7.9473807,2980.4,2978.7,0.555]
[1769005108948,2.191,2980.4,2978.7,0.555]
[1769005109120,1.5611567,2980.3,2978.7,3.91210838]
[1769005109312,6.7102835,2980.5,2978.7,3.91210838]
[1769005109313,6.7102835,2980.5,2978.7,0.555]
[1769005109536,7.004624,2980.4,2978.7,0.555]
[1769005109929,7.9473807,2980.3,2978.7,0.555]
[1769005110100,25.77613756,2980.5,2978.7,0.555]
[1769005110313,6.7102835,2980.5,2978.7,3.91213254]
[1769005110539,3.35514175,2980.5,2978.9,11.97611858]
[1769005110740,0.002,2980.9,2978.9,11.97611858]
[1769005111019,0.002,2980.9,2978.9,0.5]
[1769005111449,0.002,2980.9,2978.9,11.97611858]
[1769005111649,0.002,2980.9,2979.0,11.47611858]
[1769005111826,0.002,2980.9,2979.2,11.47611858]
[1769005112017,0.002,2980.9,2978.9,0.5]
[1769005112539,0.002,2980.9,2978.7,1.11]
[1769005112540,15.580541,2980.8,2978.7,1.11]
[1769005112745,10.61974989,2980.7,2978.7,1.11]
[1769005113139,10.61974989,2980.7,2978.7,1.665]
[1769005113438,1.39745938,2980.6,2978.7,8.37933694]
[1769005113648,6.70983326,2980.7,2978.8,11.50968914]
[1769005113820,3.35491663,2980.7,2978.8,11.47611858]
[1769005114024,6.70983326,2980.7,2978.8,11.47611858]
[1769005114227,6.70983326,2980.7,2978.9,11.50968801]
[1769005114458,10.06474989,2980.7,2978.9,11.47611858]
[1769005114660,6.7102835,2980.5,2978.9,11.47611858]
[1769005114836,10.06542525,2980.5,2978.9,11.47611858]
[1769005115149,10.06542525,2980.5,2978.7,1.665]
[1769005115348,6.7102835,2980.5,2978.7,5.0221683]
[1769005115648,10.06542525,2980.5,2978.9,0.5]
[1769005115956,13.46276058,2980.4,2978.9,0.5]
[1769005116122,13.46276058,2980.4,2978.7,2.22]
[1769005116331,15.89457056,2980.2,2978.7,2.17155949]
[1769005116525,2.244223,2979.2,2977.1,0.555]
[1769005116735,4.477573,2979.1,2977.1,0.555]
[1769005117033,3.539,2978.8,2977.1,0.555]
[1769005117351,0.555,2978.7,2977.1,0.555]
[1769005118065,3.539,2978.9,2977.1,1.11]
[1769005118268,0.555,2978.8,2977.1,1.11]
[1769005118760,10.07184582,2978.6,2977.1,1.11]
[1769005119078,1.73822472,2978.5,2977.1,1.11]
[1769005119568,1.73822472,2978.5,2977.3,0.001]
[1769005120469,1.73822472,2978.5,2977.3,0.556]
[1769005120654,6.71501476,2978.4,2977.3,0.556]
[1769005121030,3.35577641,2980.0,2977.4,11.47611858]
[1769005121233,3.35829462,2979.5,2977.6,11.47611858]
[1769005121543,6.71458924,2979.5,2977.8,11.47611858]
[1769005121875,0.002,2979.5,2978.0,11.47611858]
[1769005122046,0.002,2979.5,2978.1,11.50969703]
[1769005122234,0.002,2979.5,2978.1,11.47611858]
[1769005122430,0.002,2979.5,2978.3,11.47611858]
[1769005122643,0.002,2979.5,2978.2,1.14761186]
[1769005122644,0.002,2979.5,2978.5,11.47611858]
[1769005122843,3.35480407,2980.8,2978.7,11.47611858]
[1769005123064,0.555,2980.7,2978.7,11.47611858]
[1769005123251,3.35673851,2980.9,2978.7,11.47611858]
[1769005123458,0.89067385,2980.8,2978.9,11.47611858]
[1769005124036,0.33567385,2980.8,2978.9,11.47611858]
[1769005124237,0.002,2980.9,2978.9,11.47611858]
[1769005124664,0.002,2980.9,2979.1,11.47611858]
[1769005125161,0.002,2980.9,2979.1,12.03111858]
[1769005125692,0.002,2980.9,2979.1,0.555]
[1769005126412,7.86540138,2980.8,2979.1,0.555]
[1769005126695,7.86540138,2980.8,2977.5,2.21026426]
[1769005126696,10.06542525,2980.5,2978.2,4.50525932]
[1769005126894,7.602951,2980.4,2977.9,11.55713315]
[1769005127066,0.555,2980.3,2978.2,3.35767885]
[1769005127466,0.555,2980.3,2978.2,0.555]
[1769005127663,12.0154199,2980.1,2978.2,0.555]
[1769005127860,0.555,2980.0,2978.2,0.555]
[1769005128065,16.959567,2980.5,2978.2,0.9462875]
[1769005128399,2.958126,2980.3,2978.2,4.303981]
[1769005128600,2.958126,2980.3,2978.2,4.30399472]
[1769005128799,0.555,2980.2,2978.2,4.30399472]
[1769005129099,10.06677627,2980.1,2978.2,4.30399243]
[1769005129303,1.06217763,2980.0,2978.3,0.43039924]
[1769005130195,1.61717763,2980.0,2978.3,12.54253239]
[1769005130393,3.35559209,2980.1,2978.3,12.54253239]
[1769005130394,0.002,2980.9,2978.3,12.54253239]
[1769005130591,0.555,2980.8,2978.3,12.54253239]
[1769005130782,3.35480407,2980.8,2978.3,12.54253239]
[1769005131104,10.06508754,2980.6,2978.5,11.55713315]
[1769005131307,1.61700875,2980.5,2978.6,12.71284647]
[1769005131467,1.06200875,2980.5,2978.6,12.71284647]
[1769005131881,0.555,2980.4,2978.6,12.71284647]
[1769005132166,1.06200875,2980.5,2978.6,12.71284647]
[1769005132364,0.002,2980.5,2978.6,13.26784647]
[1769005133021,0.002,2980.5,2978.8,11.55713315]
[1769005133369,0.002,2980.5,2978.9,0.03356943]
[1769005133610,0.002,2980.5,2979.0,11.55713315]
[1769005134102,0.002,2980.5,2979.2,11.55713315]
[1769005134412,0.002,2980.5,2979.3,12.71620318]
[1769005134897,0.002,2980.5,2979.3,13.27120318]
[1769005135294,0.002,2980.5,2979.3,19.98414962]
[1769005135476,0.002,2980.5,2979.3,16.62765649]
[1769005135676,0.002,2980.5,2979.3,19.98414962]
[1769005135872,0.002,2980.5,2979.4,1.25013492]
[1769005137186,0.002,2980.5,2979.5,0.01081492]
[1769005137588,0.002,2980.5,2979.5,0.03356267]
[1769005138097,0.002,2980.5,2979.4,0.555]
[1769005138790,0.555,2980.4,2979.4,0.555]
[1769005139118,3.3553669,2980.3,2979.4,0.555]
[1769005139300,0.39103669,2980.2,2979.4,0.555]
[1769005139509,0.555,2980.1,2979.4,0.555]
[1769005139697,0.555,2980.1,2979.4,1.11]
[1769005140591,0.555,2980.0,2979.4,1.11]
[1769005140792,0.555,2980.0,2978.6,0.38732046]
[1769005141028,15.162842,2979.9,2978.6,0.38732046]
[1769005141341,6.7120851,2979.7,2978.6,0.38732046]
[1769005141786,0.555,2979.6,2978.6,0.38732046]
[1769005141981,3.35604255,2979.7,2978.6,0.38732046]
[1769005142183,3.35604255,2979.7,2978.6,0.94232046]
[1769005142385,0.555,2979.6,2978.6,0.94232046]
[1769005142630,0.72670851,2979.5,2978.6,0.94232046]
[1769005142982,0.555,2979.4,2978.6,0.94232046]
[1769005143212,3.9114615,2979.4,2978.6,0.94232046]
[1769005143737,7.267923,2979.4,2978.3,0.555]
[1769005144033,13.980846,2979.4,2978.2,0.555]
[1769005144218,1.3980846,2979.3,2977.5,0.38669051]
[1769005144629,13.11319794,2979.3,2977.5,0.94169051]
[1769005144936,11.71511334,2979.1,2977.5,0.94169051]
[1769005145136,26.63455,2978.9,2977.3,0.48965379]
[1769005145292,28.50039599,2978.8,2977.3,0.48965379]
[1769005145491,38.73980602,2978.5,2976.7,0.387]
[1769005145694,32.112647,2978.2,2976.5,0.555]
[1769005145934,8.011013,2978.0,2976.5,0.555]
[1769005146124,0.555,2977.9,2976.5,0.555]
[1769005146290,20.564972,2977.8,2976.5,0.555]
[1769005146493,0.55499998,2976.5,2975.8,0.555]
[1769005146705,0.55499998,2976.5,2975.8,0.387]
[1769005146923,0.555,2976.4,2975.8,0.387]
[1769005147139,0.555,2977.0,2975.9,11.81663092]
[1769005147348,0.555,2977.1,2976.1,11.81663092]
[1769005148138,0.555,2977.0,2976.1,11.81663092]
[1769005148328,0.555,2977.0,2975.8,0.942]
[1769005148495,17.40083754,2977.8,2975.8,0.942]
[1769005148826,0.555,2977.7,2975.8,12.75863092]
[1769005149027,1.79558375,2977.6,2975.9,1.61191472]
[1769005149340,3.35863505,2977.4,2976.0,3.36017802]
[1769005149541,10.07590515,2977.4,2975.9,0.555]
[1769005149833,10.07590515,2977.4,2975.4,2.052]
[1769005149834,8.241623,2977.1,2975.4,2.052]
[1769005150134,30.0,2977.0,2975.4,2.052]
[1769005150331,3.39115248,2976.9,2975.4,2.052]
[1769005150531,30.0,2977.0,2975.4,2.052]
[1769005150756,16.79317525,2977.4,2973.8,0.556]
[1769005150757,0.81911622,2975.0,2973.8,0.556]
[1769005150923,0.81911622,2975.0,2973.6,0.555]
[1769005150924,0.877295,2974.0,2973.6,0.555]
[1769005151127,1.11,2974.0,2973.6,0.555]
[1769005151322,3.36258784,2973.9,2972.8,11.81663092]
[1769005151661,6.72517568,2973.9,2972.4,0.001]
[1769005151807,4.47251671,2974.0,2972.4,0.001]
[1769005152144,7.83503342,2974.0,2972.4,9.5e-07]
[1769005152307,0.555,2974.0,2972.9,11.81663092]
[1769005153445,0.555,2974.0,2972.9,15.1803371]
[1769005153744,0.555,2974.0,2972.4,4.60139044]
[1769005153745,0.555,2974.0,2972.6,3.36404835]
[1769005153926,0.555,2974.0,2972.4,13.05379506]
[1769005154138,3.91756193,2974.0,2972.5,3.36416625]
[1769005154304,0.78349289,2973.9,2972.6,13.45842705]
[1769005154637,0.555,2973.9,2972.7,15.18049281]
[1769005154943,0.555,2973.9,2972.7,3.36386189]
[1769005155147,0.555,2973.9,2971.2,11.81663092]
[1769005155148,30.0,2973.5,2971.2,11.81663092]
[1769005155310,13.45351808,2973.2,2971.2,1.18166309]
[1769005155509,30.0,2973.1,2970.7,0.555]
[1769005156216,13.45351808,2973.2,2970.7,0.555]
[1769005156217,6.72675904,2973.2,2971.2,15.42986999]
[1769005156441,6.72675904,2973.2,2971.2,15.42984871]
[1769005156442,0.555,2973.1,2971.2,15.42984871]
[1769005156632,0.555,2973.1,2971.2,18.79549222]
[1769005156828,0.7281759,2973.0,2971.3,1.87954922]
[1769005157031,0.555,2972.9,2971.4,12.06422648]
[1769005157539,0.7281759,2973.0,2971.5,3.36530371]
[1769005157746,0.556,2973.0,2971.4,12.06422648]
[1769005158157,3.36179654,2974.6,2971.6,12.06422648]
[1769005158446,0.556,2974.5,2971.6,12.06422648]
[1769005158615,8.615001,2974.4,2971.6,12.06422648]
[1769005159455,13.44899468,2974.2,2971.6,12.61922648]
[1769005159656,3.39115248,2974.1,2971.7,1.59845302]
[1769005159868,0.556,2974.1,2971.7,1.59845302]
[1769005160176,4.56501,2974.0,2971.7,1.59845302]
[1769005160336,0.556,2973.9,2971.7,1.59845302]
[1769005160758,13.44899468,2974.2,2971.7,1.59845302]
[1769005160952,0.556,2974.1,2971.7,1.59845302]
[1769005161158,1.40049947,2974.0,2971.8,14.15903252]
[1769005161352,3.539,2973.9,2971.8,14.15903252]
[1769005161557,6.72540184,2973.8,2971.9,15.42907724]
[1769005161963,6.72540184,2973.8,2971.9,15.98407724]
[1769005162446,10.08810276,2973.8,2971.9,12.61922648]
[1769005162764,1.06441028,2973.7,2972.0,1.84152553]
[1769005163270,1.06441028,2973.7,2972.0,13.90575201]
[1769005163436,1.06441028,2973.7,2972.0,13.87212419]
[1769005163645,6.72585418,2973.6,2972.0,13.87212419]
[1769005163988,1.06441028,2973.7,2972.0,13.87212419]
[1769005164185,0.556,2974.3,2972.2,12.06422648]
[1769005164342,0.556,2974.6,2972.4,12.06422648]
[1769005164657,0.556,2974.6,2972.6,12.06422648]
[1769005164994,0.41532865,2975.7,2972.6,12.06422648]
[1769005164995,3.36150504,2974.9,2972.6,12.06422648]
[1769005165268,6.72301008,2974.9,2972.8,12.06422648]
[1769005165638,7.47579549,2975.1,2972.8,12.06422648]
[1769005165943,9.447764,2975.0,2972.8,12.06422648]
[1769005166169,23.209143,2974.8,2972.8,13.39129139]
[1769005166862,2.08136103,2974.9,2972.8,13.39129139]
[1769005167065,22.698927,2974.8,2972.8,0.555]
[1769005167455,21.298211,2974.8,2972.8,0.555]
[1769005167655,0.128,2974.6,2971.6,1e-08]
[1769005167860,0.555,2972.8,2971.2,0.38716024]
[1769005168042,4.316532,2973.5,2971.2,12.45138672]
[1769005168381,7.47579549,2973.8,2971.2,12.45138672]
[1769005168683,0.556,2973.7,2971.3,12.06422648]
[1769005169280,0.556,2973.6,2971.3,12.06422648]
[1769005169499,0.556,2973.6,2971.4,13.64592271]
[1769005169805,13.45216072,2973.5,2971.8,0.001]
[1769005170563,0.556,2973.4,2971.8,0.001]
[1769005170976,0.556,2973.4,2971.2,0.94216024]
[1769005170977,30.0,2973.3,2971.2,0.94216024]
[1769005171188,7.47579549,2973.0,2971.2,0.94216024]
[1769005171390,3.539,2972.9,2971.2,0.94216024]
[1769005171575,7.47579549,2973.0,2971.2,0.94216024]
[1769005171895,13.45487568,2972.9,2971.2,1.49716024]
[1769005172675,0.556,2972.8,2971.2,1.49716024]
[1769005172880,1.06471568,2972.7,2971.2,1.49716024]
[1769005173475,0.556,2972.6,2971.2,1.49716024]
[1769005173680,0.556,2972.5,2971.2,1.49716024]
[1769005173901,0.556,2972.4,2971.4,0.5]
[1769005174104,0.556,2972.3,2971.4,0.5]
[1769005174306,3.362814,2973.7,2971.4,12.56422648]
[1769005174504,0.556,2973.6,2971.4,12.56422648]
[1769005175024,6.725628,2973.7,2971.4,12.56422648]
[1769005175203,0.556,2973.5,2971.6,12.06422648]
[1769005175519,6.7265328,2973.3,2971.6,12.06422648]
[1769005175676,0.556,2973.2,2971.6,12.06422648]
[1769005176077,6.7265328,2973.3,2971.6,12.06422648]
[1769005176270,0.556,2973.1,2971.6,12.06422648]
[1769005176480,0.556,2973.0,2971.7,1.33206491]
[1769005176812,3.36304018,2973.5,2971.7,13.39629139]
[1769005176978,0.556,2973.4,2971.7,13.39629139]
[1769005177712,6.7265328,2973.3,2971.8,12.06422648]
[1769005178099,10.0897992,2973.3,2971.6,0.555]
[1769005178298,1.06457992,2973.2,2971.6,0.0555]
[1769005178614,0.556,2973.1,2971.6,0.0555]
[1769005178796,0.556,2973.1,2971.6,0.6105]
[1769005179118,0.556,2973.1,2971.8,0.5]
[1769005179413,0.556,2973.0,2971.6,0.6105]
[1769005179716,6.72743784,2972.9,2971.6,0.6105]
[1769005179874,0.72834378,2972.8,2971.6,0.6105]
[1769005180080,0.556,2972.7,2971.6,0.6105]
[1769005180477,1.06457992,2973.2,2971.6,19.4050829]
[1769005180795,3.3632664,2973.3,2971.6,12.67472648]
[1769005181111,3.91920754,2973.4,2971.6,16.03991694]
[1769005181314,0.556,2973.3,2971.6,16.59491694]
[1769005181499,3.36320754,2973.4,2971.6,19.9601074]
[1769005181814,3.91938274,2973.2,2971.6,19.9601074]
[1769005182023,0.556,2973.9,2971.8,12.06422648]
[1769005182382,6.72404518,2974.4,2971.8,12.06422648]
[1769005182706,0.556,2974.3,2971.8,12.06422648]
[1769005182894,10.08606777,2974.4,2971.8,12.06422648]
[1769005183106,0.556,2974.2,2971.8,12.06422648]
[1769005183307,10.08606777,2974.4,2972.0,12.06422648]
[1769005183485,0.556,2974.2,2972.0,12.06422648]
[1769005183680,6.72472344,2974.1,2972.1,6.72924866]
[1769005183886,6.72472344,2974.1,2972.2,12.56422648]
[1769005184195,0.556,2974.1,2972.2,12.56422648]
[1769005184508,0.002,2973.7,2972.4,12.06422648]
[1769005185600,0.002,2973.7,2972.2,0.5]
[1769005186084,0.556,2973.6,2972.2,0.555]
[1769005186488,0.002,2973.7,2972.2,0.555]
[1769005186711,0.556,2973.6,2972.2,0.555]
[1769005187285,0.72834018,2973.6,2972.2,13.22068204]
[1769005187511,0.002,2973.7,2972.3,12.66568204]
[1769005187820,0.002,2973.7,2972.5,12.66568204]
[1769005188716,0.002,2973.7,2972.5,13.22068204]
[1769005189596,0.002,2973.7,2972.5,0.555]
[1769005191011,0.002,2973.7,2972.5,1.11]
[1769005191208,0.556,2973.6,2972.5,1.11]
[1769005191918,6.72608036,2973.5,2972.5,1.11]
[1769005192117,0.72820804,2973.4,2972.5,1.11]
[1769005192706,0.002,2973.7,2972.5,1.11]
[1769005192885,3.36481931,2973.7,2972.5,1.11]
[1769005193387,3.36481931,2973.7,2972.5,1.665]
[1769005194010,0.002,2973.7,2972.5,1.665]
[1769005194538,0.002,2973.7,2972.5,14.33068204]
[1769005194703,0.002,2973.7,2972.7,0.5]
[1769005195105,0.002,2973.9,2972.7,13.16568204]
[1769005195311,0.002,2974.6,2972.7,13.16568204]
[1769005195594,10.64350124,2974.6,2972.7,13.16568204]
[1769005195804,7.95492084,2974.4,2972.7,1.055]
[1769005196012,6.72449734,2974.2,2972.7,1.055]
[1769005196218,10.08674601,2974.2,2972.7,1.055]
[1769005196719,10.08674601,2974.2,2972.7,0.555]
[1769005197224,11.49392084,2974.1,2972.5,1.665]
[1769005197627,0.002,2973.5,2972.5,1.665]
[1769005197922,0.558,2973.5,2972.5,1.665]
[1769005198123,3.92112301,2973.5,2972.5,1.665]
[1769005198332,0.72841577,2973.4,2972.5,2.22]
[1769005198696,0.002,2973.7,2972.6,12.30616128]
[1769005198995,0.002,2974.6,2972.6,12.30616128]
[1769005199196,0.556,2974.5,2972.6,12.30616128]
[1769005199732,0.002,2974.6,2972.8,0.5]
[1769005199915,6.72564016,2974.6,2972.9,12.30616128]
[1769005200112,6.72564016,2974.6,2973.1,12.30616128]
[1769005200113,0.67256402,2974.5,2973.1,12.30616128]
[1769005200416,0.002,2974.6,2973.1,12.30616128]
[1769005200748,0.002,2974.6,2973.1,12.86116128]
[1769005201834,0.002,2974.8,2973.1,0.555]
[1769005202338,7.47655392,2974.8,2973.1,0.555]
[1769005202536,12.32281334,2974.6,2973.1,0.555]
[1769005202724,1.23228133,2974.5,2973.1,0.555]
[1769005203031,0.556,2974.4,2973.1,0.555]
[1769005203235,0.002,2974.8,2973.1,13.41616128]
[1769005203434,0.002,2974.8,2973.2,12.30616128]
[1769005203636,0.556,2974.7,2973.1,1.11]
[1769005204022,10.08538962,2974.6,2973.1,1.11]
[1769005204223,1.06413896,2974.5,2973.1,1.11]
[1769005204839,1.06413896,2974.5,2973.2,12.33979507]
[1769005205149,0.002,2974.8,2973.2,12.30616128]
[1769005205856,0.002,2974.9,2973.3,12.30616128]
[1769005206160,6.7214438,2975.6,2973.6,12.30616128]
[1769005207157,10.0821657,2975.6,2973.6,12.30616128]
[1769005207339,10.0821657,2975.6,2973.7,0.03362814]
[1769005207547,1.00821657,2975.5,2973.7,1.26760708]
[1769005207722,1.00821657,2975.5,2973.7,1.23397894]
[1769005207928,1.00821657,2975.5,2973.7,1.26760708]
[1769005208229,6.7217853,2975.4,2973.7,1.78897894]
[1769005208463,4.36901621,2975.5,2973.8,12.30616128]
[1769005208634,6.72159928,2975.5,2973.9,2.08543855]
[1769005208838,10.08239892,2975.5,2973.7,0.58862814]
[1769005209221,33.24056582,2975.5,2973.7,0.555]
[1769005209455,12.32281334,2975.3,2973.2,0.555]
[1769005209652,0.128,2975.4,2973.3,0.03363266]
[1769005209852,0.558,2975.2,2973.3,12.33979394]
[1769005210035,0.556,2975.1,2973.3,12.30616128]
[1769005210260,10.64003359,2975.0,2973.4,0.5]
[1769005210563,0.002,2975.2,2973.6,12.30616128]
[1769005210850,0.002,2975.2,2973.8,12.30616128]
[1769005211048,0.002,2975.2,2974.0,12.30616128]
[1769005211467,0.002,2975.2,2973.5,12.30616128]
[1769005211620,0.002,2975.2,2973.7,12.30616128]
[1769005211821,3.36314184,2975.2,2973.8,13.57376734]
[1769005212041,0.002,2975.2,2973.8,13.54014034]
[1769005212244,0.002,2975.2,2973.9,3.36258784]
[1769005212442,0.002,2975.2,2974.0,12.33978602]
[1769005212763,0.002,2975.2,2973.9,3.36258784]
[1769005212764,0.002,2975.2,2974.1,12.33978489]
[1769005212963,0.002,2975.4,2974.3,12.30616128]
[1769005213165,3.36161425,2976.6,2974.4,12.30616128]
[1769005213166,3.35965059,2976.5,2974.4,12.30616128]
[1769005213458,0.002,2976.6,2974.4,12.30616128]
[1769005213962,0.002,2976.6,2975.0,12.30616128]
[1769005214164,0.002,2976.6,2975.2,12.30616128]
[1769005214361,0.002,2976.6,2975.4,12.30616128]
[1769005215127,0.002,2976.6,2975.6,12.80616128]
[1769005215331,6.7170445,2977.5,2975.6,12.30616128]
[1769005215862,3.35852225,2977.5,2975.6,12.30616128]
[1769005216068,6.7170445,2977.5,2975.6,12.30616128]
[1769005216269,10.07624355,2977.3,2975.8,12.40151673]
[1769005216469,6.7174957,2977.3,2975.3,1.78561613]
[1769005216668,6.7174957,2977.3,2974.2,12.40151673]
[1769005216669,12.83647003,2976.9,2974.2,12.40151673]
[1769005216832,12.83647003,2976.4,2973.6,12.40151673]
[1769005217036,12.83647003,2977.0,2974.2,12.40151673]
[1769005217364,14.12011703,2976.9,2974.4,12.40151673]
[1769005217529,14.12011703,2976.9,2975.2,3.36103842]
[1769005217530,1.283647,2976.9,2975.2,3.36103842]
[1769005217876,0.556,2977.2,2975.2,15.76262744]
[1769005218072,0.556,2977.2,2975.3,3.36097014]
[1769005218248,6.71794698,2977.1,2975.3,3.36095982]
[1769005218441,26.27236399,2977.1,2974.5,12.40151673]